bitfinex-derivatives/quotes_SOLF0:USTF0_20250901
["timestamp","ask_amount","ask_price","bid_price","bid_amount"]
[1756716553533,7.51,203.25,203.13,8.78005679]
[1756716553534,7.51,203.25,203.18,1.44005679]
[1756716553740,122.44,203.24,203.18,1.44005679]
[1756716554237,7.51,203.3,203.18,1.44005679]
[1756716554438,122.44,203.29,203.21,1.44005679]
[1756716554835,7.51,203.28,203.21,1.44005679]
[1756716555036,122.44,203.29,203.23,0.03197391]
[1756716555235,129.95,203.29,203.23,0.03197391]
[1756716556540,1.44005679,203.28,203.23,0.03197391]
[1756716557446,7.51,203.27,203.23,0.03197391]
[1756716557842,122.44,203.29,203.23,0.03197391]
[1756716558449,122.42,203.28,203.23,0.03197391]
[1756716558646,7.51,203.27,203.23,0.03197391]
[1756716559151,122.42,203.28,203.23,0.03197391]
[1756716559648,7.51,203.27,203.23,0.03197391]
[1756716559949,122.42,203.28,203.23,0.03197391]
[1756716560150,7.51,203.27,203.23,0.03197391]
[1756716562853,122.42,203.28,203.23,0.03197391]
[1756716563152,129.93,203.28,203.23,0.03197391]
[1756716563849,122.42,203.28,203.23,0.03197391]
[1756716564053,129.93,203.28,203.23,0.03197391]
[1756716564658,7.35,203.27,203.23,0.03197391]
[1756716565359,122.42,203.28,203.23,0.03197391]
[1756716566254,122.38,203.28,203.23,0.03197391]
[1756716566453,330.9,203.32,203.25,1.44005679]
[1756716566650,122.38,203.31,203.25,1.44005679]
[1756716567053,330.9,203.32,203.28,1.44005679]
[1756716567254,453.28,203.32,203.28,1.44005679]
[1756716567463,122.38,203.32,203.28,1.44005679]
[1756716567654,7.35,203.34,203.28,1.44005679]
[1756716567953,67.48,203.34,203.31,1.44005679]
[1756716568148,67.48,203.34,203.28,0.0356695]
[1756716568349,74.83,203.34,203.3,1.44005679]
[1756716568551,67.48,203.34,203.3,1.44005679]
[1756716568957,74.83,203.34,203.28,0.0356695]
[1756716569163,74.83,203.34,203.29,1.44005679]
[1756716570664,7.35,203.33,203.29,1.44005679]
[1756716571358,7.35,203.33,203.28,0.0356695]
[1756716571757,67.48,203.34,203.28,0.0356695]
[1756716572160,7.35,203.33,203.28,0.0356695]
[1756716572764,67.48,203.34,203.28,0.0356695]
[1756716572968,7.35,203.33,203.28,0.0356695]
[1756716573268,67.48,203.34,203.28,0.0356695]
[1756716573665,7.35,203.33,203.28,0.0356695]
[1756716574170,67.48,203.34,203.28,0.0356695]
[1756716574371,7.35,203.33,203.28,0.0356695]
[1756716574768,67.48,203.34,203.28,0.0356695]
[1756716574969,7.35,203.33,203.28,0.0356695]
[1756716575472,67.48,203.34,203.28,0.0356695]
[1756716575765,74.83,203.34,203.28,0.0356695]
[1756716576069,7.35,203.34,203.28,0.0356695]
[1756716576272,102.49,203.34,203.28,0.0356695]
[1756716578071,1.44005679,203.38,203.29,1.44005679]
[1756716578072,8.79005679,203.38,203.29,1.44005679]
[1756716578368,121.12,203.37,203.29,1.44005679]
[1756716579266,7.35,203.38,203.29,1.44005679]
[1756716579472,7.35,203.38,203.32,1.44005679]
[1756716579671,122.3,203.39,203.32,1.44005679]
[1756716580274,122.3,203.39,203.33,0.03604967]
[1756716580668,7.35,203.42,203.35,1.44005679]
[1756716583573,453.06,203.44,203.35,1.44005679]
[1756716584276,330.78,203.44,203.37,0.03295223]
[1756716584475,453.04,203.44,203.37,0.03295223]
[1756716585676,453.04,203.44,203.38,1.44005679]
[1756716586274,453.02,203.44,203.38,1.44005679]
[1756716586975,330.78,203.44,203.38,1.44005679]
[1756716587174,453.02,203.44,203.38,1.44005679]
[1756716587374,7.35,203.43,203.38,1.44005679]
[1756716587573,460.37,203.44,203.38,1.44005679]
[1756716589067,453.02,203.44,203.38,1.44005679]
[1756716589277,7.35,203.48,203.38,1.44005679]
[1756716589478,122.22,203.47,203.38,1.44005679]
[1756716589875,7.35,203.48,203.41,1.44005679]
[1756716590078,7.35,203.52,203.41,1.44005679]
[1756716590379,73.86,203.51,203.44,1.44005679]
[1756716590674,73.86,203.51,203.44,1.47172826]
[1756716591268,7.35,203.5,203.44,0.03167147]
[1756716591580,129.55,203.49,203.44,0.03167147]
[1756716591776,122.2,203.49,203.44,0.03167147]
[1756716592370,7.35,203.48,203.44,0.03167147]
[1756716593376,55.9,203.48,203.44,0.03167147]
[1756716593974,7.35,203.53,203.44,0.03167147]
[1756716594182,109.06,203.52,203.44,1.47172826]
[1756716595980,7.35,203.53,203.44,1.47172826]
[1756716596171,122.16,203.52,203.44,1.47172826]
[1756716596372,122.16,203.52,203.45,1.44005679]
[1756716598187,7.35,203.53,203.45,1.44005679]
[1756716598685,122.14,203.52,203.45,1.44005679]
[1756716601388,122.12,203.55,203.45,9.35005679]
[1756716602188,122.12,203.55,203.48,1.47608461]
[1756716602583,7.93,203.54,203.48,0.03602782]
[1756716606591,1.44005679,203.53,203.48,0.03602782]
[1756716606789,7.93,203.52,203.48,0.03602782]
[1756716606995,122.1,203.51,203.48,0.03602782]
[1756716607591,1.44005679,203.5,203.38,1.44005679]
[1756716607895,7.93,203.46,203.36,1.44005679]
[1756716608097,122.1,203.45,203.36,1.44005679]
[1756716608297,122.1,203.45,203.39,1.44005679]
[1756716608704,122.1,203.45,203.36,1.44005679]
[1756716609796,122.1,203.45,203.36,9.35005679]
[1756716610597,122.1,203.45,203.39,1.44005679]
[1756716610798,122.1,203.46,203.39,1.44005679]
[1756716610998,122.08,203.46,203.36,7.91]
[1756716611210,7.93,203.52,203.42,1.44005679]
[1756716611405,122.08,203.51,203.42,1.44005679]
[1756716612911,9.37005679,203.5,203.39,1.44005679]
[1756716616114,7.93,203.5,203.39,1.44005679]
[1756716616313,36.02,203.49,203.42,1.44005679]
[1756716617814,108.43785003,203.54,203.42,1.44005679]
[1756716618009,122.08,203.5,203.42,1.44005679]
[1756716618915,122.08,203.5,203.45,1.44005679]
[1756716619717,122.06,203.53,203.45,1.44005679]
[1756716619916,106.99779324,203.54,203.45,1.44005679]
[1756716620121,122.06,203.58,203.48,1.44005679]
[1756716621314,122.06,203.58,203.45,7.91]
[1756716621516,122.06,203.58,203.5,1.44005679]
[1756716622513,122.06,203.57,203.5,1.44005679]
[1756716622812,452.64,203.56,203.5,1.44005679]
[1756716623017,330.58,203.56,203.5,1.44005679]
[1756716623217,452.62,203.56,203.5,1.44005679]
[1756716624119,452.62,203.56,203.49,1.44005679]
[1756716624818,452.62,203.56,203.42,1.44005679]
[1756716624819,122.04,203.56,203.52,1.44005679]
[1756716625617,122.04,203.58,203.52,1.44005679]
[1756716626422,122.02,203.62,203.55,1.44005679]
[1756716627420,8.0,203.61,203.52,1.44005679]
[1756716627723,8.0,203.58,203.43,69.51622889]
[1756716627922,122.02,203.57,203.48,1.44005679]
[1756716628722,8.0,203.56,203.48,1.44005679]
[1756716633526,8.0,203.61,203.51,1.44005679]
[1756716633717,122.0,203.59,203.51,1.44005679]
[1756716633918,8.0,203.61,203.51,1.44005679]
[1756716634126,130.0,203.61,203.51,1.44005679]
[1756716634719,8.0,203.61,203.54,1.44005679]
[1756716634925,30.18,203.64,203.57,1.44005679]
[1756716635935,5.50667887,203.75,203.57,1.44005679]
[1756716636123,319.0,203.87,203.6,1.44005679]
[1756716636124,460.34,203.68,203.6,1.44005679]
[1756716637124,460.34,203.68,203.55,7.93]
[1756716637328,460.34,203.68,203.59,1.44005679]
[1756716637730,460.34,203.68,203.55,7.93]
[1756716637931,460.34,203.68,203.58,1.44005679]
[1756716638830,330.36,203.68,203.61,1.44005679]
[1756716639435,330.36,203.68,203.54,7.93]
[1756716639636,330.36,203.68,203.6,1.44005679]
[1756716639828,8.0,203.67,203.6,1.44005679]
[1756716640128,8.0,203.65,203.53,1.44005679]
[1756716640332,123.40005679,203.64,203.53,1.44005679]
[1756716640632,8.0,203.63,203.53,1.44005679]
[1756716641530,9.44005679,203.63,203.5,1.44005679]
[1756716641726,9.44005679,203.63,203.49,1.44005679]
[1756716641925,8.0,203.59,203.49,1.44005679]
[1756716642232,121.94,203.58,203.49,1.44005679]
[1756716642731,121.94,203.58,203.46,1.44005679]
[1756716643532,1.44005679,203.54,203.44,1.44005679]
[1756716643728,8.0,203.53,203.44,1.44005679]
[1756716644032,24.32,203.52,203.44,1.44005679]
[1756716644626,8.0,203.58,203.47,1.44005679]
[1756716644831,30.98,203.55,203.47,1.44005679]
[1756716646735,8.0,203.58,203.47,1.44005679]
[1756716646930,30.44,203.57,203.47,1.44005679]
[1756716647633,9.44005679,203.56,203.44,1.44005679]
[1756716648430,8.0,203.54,203.44,1.44005679]
[1756716649536,9.44005679,203.54,203.44,1.44005679]
[1756716649838,8.0,203.53,203.41,1.44005679]
[1756716650432,8.0,203.53,203.39,7.93]
[1756716650736,8.0,203.53,203.41,1.44005679]
[1756716651438,1.44005679,203.51,203.35,7.93]
[1756716651640,19.02,203.5,203.38,1.44005679]
[1756716653133,8.0,203.5,203.41,1.44005679]
[1756716653334,19.52,203.49,203.41,1.44005679]
[1756716653638,19.52,203.49,203.35,7.93]
[1756716653639,8.0,203.48,203.35,7.93]
[1756716653940,8.0,203.48,203.32,31.86]
[1756716653941,9.44005679,203.48,203.38,1.44005679]
[1756716655237,30.36,203.47,203.38,1.44005679]
[1756716655939,8.0,203.48,203.38,1.44005679]
[1756716656135,337.88,203.54,203.44,1.44005679]
[1756716656334,337.88,203.54,203.47,1.44005679]
[1756716656739,337.88,203.54,203.44,1.44005679]
[1756716657642,121.98,203.53,203.44,1.44005679]
[1756716657840,121.98,203.52,203.44,1.44005679]
[1756716658143,129.56,203.52,203.47,1.44005679]
[1756716658840,7.58,203.52,203.47,1.44005679]
[1756716659040,129.56,203.53,203.47,1.44005679]
[1756716659340,121.98,203.52,203.47,1.44005679]
[1756716659736,129.56,203.52,203.47,1.44005679]
[1756716660238,7.58,203.51,203.36,11.89747442]
[1756716660441,9.02005679,203.51,203.42,1.44005679]
[1756716660639,9.02005679,203.51,203.39,1.44005679]
[1756716660835,7.58,203.47,203.37,1.44005679]
[1756716661037,7.58,203.53,203.43,1.44005679]
[1756716661240,28.48,203.49,203.43,1.44005679]
[1756716661538,7.58,203.53,203.43,1.44005679]
[1756716661940,122.02,203.52,203.43,1.44005679]
[1756716662845,7.58,203.53,203.43,1.44005679]
[1756716663047,122.08,203.51,203.43,1.44005679]
[1756716663349,122.08,203.53,203.46,1.44005679]
[1756716663639,452.4,203.54,203.46,1.44005679]
[1756716664036,452.38,203.54,203.49,1.44005679]
[1756716664440,122.08,203.54,203.49,1.44005679]
[1756716666652,129.66,203.54,203.49,1.44005679]
[1756716667150,7.58,203.53,203.46,1.44005679]
[1756716667343,1.44005679,203.56,203.46,1.44005679]
[1756716667553,7.58,203.57,203.49,1.44005679]
[1756716667850,65.3,203.56,203.49,1.44005679]
[1756716668355,7.58,203.61,203.52,1.44005679]
[1756716668553,63.62,203.6,203.52,1.44005679]
[1756716668851,7.58,203.61,203.52,1.44005679]
[1756716669151,29.56,203.6,203.52,1.44005679]
[1756716670545,29.56,203.6,203.5,1.44005679]
[1756716670546,7.58,203.59,203.5,1.44005679]
[1756716671556,58.92,203.58,203.5,1.44005679]
[1756716672353,58.92,203.58,203.44,7.78]
[1756716672556,58.92,203.58,203.5,1.44005679]
[1756716672758,7.58,203.59,203.5,1.44005679]
[1756716673061,7.58,203.59,203.53,1.44005679]
[1756716673259,7.58,203.59,203.5,1.44005679]
[1756716674363,9.02005679,203.59,203.48,1.44005679]
[1756716676464,7.58,203.59,203.51,1.44005679]
[1756716676653,79.1,203.59,203.51,1.44005679]
[1756716676853,112.5,203.59,203.51,1.44005679]
[1756716677059,122.0,203.61,203.51,1.44005679]
[1756716677663,7.58,203.6,203.47,7.78]
[1756716677862,7.58,203.6,203.51,1.44005679]
[1756716681755,7.58,203.6,203.47,7.78]
[1756716681966,7.58,203.6,203.52,1.44005679]
[1756716685463,129.54,203.6,203.52,1.44005679]
[1756716685659,7.58,203.6,203.52,1.44005679]
[1756716685864,44.62,203.6,203.52,1.44005679]
[1756716686261,7.58,203.6,203.52,1.44005679]
[1756716687765,7.58,203.6,203.53,1.44005679]
[1756716688162,7.58,203.6,203.51,1.44005679]
[1756716689371,9.02005679,203.6,203.45,4.11925595]
[1756716689569,7.77,203.56,203.47,1.44005679]
[1756716691374,7.77,203.53,203.41,4.11925595]
[1756716691571,9.21005679,203.51,203.39,4.11925595]
[1756716691872,7.77,203.49,203.39,1.44005679]
[1756716692261,19.5,203.49,203.42,1.44005679]
[1756716693064,19.5,203.49,203.39,1.44005679]
[1756716693269,7.77,203.48,203.39,1.44005679]
[1756716693469,7.77,203.48,203.36,102.89937978]
[1756716693667,9.21005679,203.48,203.35,1.44005679]
[1756716693866,1.44005679,203.45,203.35,1.44005679]
[1756716694073,7.77,203.44,203.35,1.44005679]
[1756716695770,7.77,203.44,203.29,11.83925595]
[1756716695973,7.77,203.44,203.32,1.44005679]
[1756716696568,7.77,203.41,203.3,1.44005679]
[1756716696768,20.94005679,203.49,203.28,1.44005679]
[1756716696769,7.77,203.38,203.28,1.44005679]
[1756716696974,9.21005679,203.36,203.25,1.44005679]
[1756716697669,7.77,203.36,203.25,1.44005679]
[1756716698672,7.77,203.47,203.28,1.44005679]
[1756716698868,9.21005679,203.41,203.31,1.44005679]
[1756716699469,9.21005679,203.41,203.28,1.44005679]
[1756716700073,7.77,203.37,203.28,1.44005679]
[1756716700278,11.4,203.36,203.25,1.44005679]
[1756716702069,9.21005679,203.35,203.21,7.72]
[1756716702277,1.44005679,203.32,203.14,7.72]
[1756716702482,7.77,203.31,203.2,1.44005679]
[1756716703675,7.77,203.31,203.17,7.72]
[1756716703975,7.77,203.31,203.21,1.44005679]
[1756716704176,30.86,203.3,203.21,1.44005679]
[1756716706480,7.77,203.29,203.18,1.44005679]
[1756716707478,7.77,203.34,203.24,1.44005679]
[1756716707774,76.51,203.34,203.24,1.44005679]
[1756716707980,76.51,203.34,203.22,1.44005679]
[1756716707981,76.51,203.34,203.27,1.44005679]
[1756716709782,7.77,203.34,203.27,1.44005679]
[1756716711587,122.32,203.35,203.27,1.44005679]
[1756716711786,7.77,203.37,203.27,1.44005679]
[1756716712087,122.28,203.36,203.27,1.44005679]
[1756716713985,122.28,203.36,203.25,7.72]
[1756716714193,122.28,203.36,203.28,1.44005679]
[1756716714688,122.28,203.36,203.27,1.44005679]
[1756716714991,0.03132068,203.34,203.3,0.03616748]
[1756716717391,8.04,203.33,203.3,0.03616748]
[1756716717689,0.03132068,203.34,203.3,0.03616748]
[1756716717888,122.14,203.33,203.3,0.03616748]
[1756716719192,130.18,203.33,203.3,0.03616748]
[1756716719592,122.14,203.33,203.3,0.03616748]
[1756716721387,8.04,203.3,203.19,1.44005679]
[1756716721696,8.04,203.3,203.18,1.44005679]
[1756716721886,1.44005679,203.28,203.18,1.44005679]
[1756716722086,52.3,203.27,203.18,1.44005679]
[1756716722790,0.03428806,203.25,203.18,1.44005679]
[1756716723693,0.03428806,203.25,203.21,1.44005679]
[1756716723898,0.03428806,203.25,203.22,7.83]
[1756716724200,0.03428806,203.25,203.23,1.44005679]
[1756716725299,0.03428806,203.25,203.24,7.83]
[1756716725796,0.03428806,203.25,203.24,8.33]
[1756716725993,8.04,203.36,203.24,8.33]
[1756716726198,29.16,203.35,203.28,1.44005679]
[1756716726796,57.62,203.34,203.28,1.44005679]
[1756716727196,8.04,203.36,203.28,1.44005679]
[1756716727392,29.54,203.36,203.28,1.44005679]
[1756716727597,9.48005679,203.41,203.28,1.44005679]
[1756716727801,9.48005679,203.41,203.22,1.44005679]
[1756716727802,8.04,203.41,203.3,1.44005679]
[1756716727995,122.2,203.4,203.33,1.44005679]
[1756716728193,8.04,203.41,203.33,1.44005679]
[1756716728395,122.22,203.4,203.33,1.44005679]
[1756716728596,122.22,203.4,203.34,1.44005679]
[1756716729696,122.22,203.4,203.31,1.44005679]
[1756716730700,8.04,203.39,203.31,1.44005679]
[1756716731596,9.48005679,203.39,203.28,1.44005679]
[1756716732699,8.04,203.39,203.25,7.83]
[1756716732907,122.16,203.38,203.31,1.44005679]
[1756716733204,332.10005679,203.42,203.31,1.44005679]
[1756716733404,122.16,203.41,203.31,1.44005679]
[1756716733705,122.16,203.41,203.34,1.44005679]
[1756716734295,330.66,203.42,203.34,1.44005679]
[1756716734496,122.16,203.4,203.34,1.44005679]
[1756716735207,330.66,203.42,203.37,1.44005679]
[1756716738811,330.66,203.42,203.32,7.83]
[1756716739004,330.66,203.42,203.37,1.44005679]
[1756716739900,122.16,203.43,203.37,1.44005679]
[1756716740608,122.06,203.44,203.37,1.44005679]
[1756716741112,122.06,203.44,203.39,1.44005679]
[1756716742707,330.56,203.54,203.42,1.44005679]
[1756716742708,122.06,203.48,203.42,1.44005679]
[1756716745615,7.52,203.47,203.39,1.44005679]
[1756716752621,29.9,203.47,203.42,1.44005679]
[1756716754423,7.52,203.46,203.42,1.44005679]
[1756716754623,29.9,203.47,203.42,1.44005679]
[1756716756027,29.9,203.47,203.39,7.32]
[1756716756227,29.9,203.47,203.33,7.32]
[1756716756525,29.9,203.47,203.4,1.44005679]
[1756716758625,7.52,203.46,203.32,7.32]
[1756716758818,1.44005679,203.45,203.28,11.43925595]
[1756716759124,7.52,203.44,203.33,1.44005679]
[1756716762232,7.52,203.41,203.29,1.44005679]
[1756716762424,7.52,203.38,203.29,1.44005679]
[1756716766938,0.03565831,203.36,203.31,0.03497419]
[1756716767134,7.55565831,203.36,203.31,0.03497419]
[1756716767335,7.52,203.35,203.31,0.03497419]
[1756716767738,0.03565831,203.36,203.31,0.03497419]
[1756716768039,0.03565831,203.36,203.32,1.44005679]
[1756716768236,7.52,203.35,203.31,0.03497419]
[1756716768541,0.03565831,203.36,203.31,0.03497419]
[1756716770235,7.55565831,203.36,203.31,0.03497419]
[1756716770940,0.03565831,203.36,203.31,0.03497419]
[1756716771636,7.55565831,203.36,203.31,0.03497419]
[1756716771845,7.52,203.35,203.31,0.03497419]
[1756716772439,0.03565831,203.36,203.31,0.03497419]
[1756716772638,7.52,203.35,203.31,0.03497419]
[1756716773340,0.03565831,203.36,203.31,0.03497419]
[1756716773743,7.52,203.35,203.31,0.03497419]
[1756716774134,0.03565831,203.36,203.31,0.03497419]
[1756716774333,7.52,203.35,203.31,0.03497419]
[1756716774742,7.48,203.35,203.31,0.03497419]
[1756716774942,0.03565831,203.36,203.31,0.03497419]
[1756716775136,7.48,203.35,203.31,0.03497419]
[1756716775442,0.03565831,203.36,203.31,0.03497419]
[1756716776338,7.48,203.35,203.31,0.03497419]
[1756716776538,0.03565831,203.36,203.31,0.03497419]
[1756716776741,7.48,203.35,203.31,0.03497419]
[1756716777042,0.03565831,203.36,203.31,0.03497419]
[1756716777543,7.48,203.35,203.31,0.03497419]
[1756716778042,0.03565831,203.36,203.31,0.03497419]
[1756716778746,7.48,203.35,203.31,0.03497419]
[1756716778945,0.03565831,203.36,203.31,0.03497419]
[1756716779144,7.98,203.35,203.31,0.03497419]
[1756716779337,7.48,203.35,203.31,0.03497419]
[1756716779542,0.03565831,203.36,203.31,0.03497419]
[1756716779938,129.86,203.35,203.31,0.03497419]
[1756716780241,7.48,203.33,203.31,0.03497419]
[1756716780745,122.38,203.32,203.31,0.03497419]
[1756716781045,7.48,203.33,203.31,0.03497419]
[1756716781245,129.82,203.32,203.31,0.03497419]
[1756716782335,7.48,203.32,203.31,0.03497419]
[1756716782541,0.03565831,203.36,203.31,0.03497419]
[1756716782842,122.32,203.35,203.31,0.03497419]
[1756716783242,0.03565831,203.36,203.32,9.24005679]
[1756716783845,0.03565831,203.36,203.32,1.44005679]
[1756716784348,7.48,203.35,203.31,0.03497419]
[1756716784755,122.3,203.34,203.31,0.03497419]
[1756716787246,0.03565831,203.36,203.31,0.03497419]
[1756716787446,122.2,203.35,203.31,0.03497419]
[1756716788151,0.03565831,203.36,203.31,0.03497419]
[1756716788446,122.21565831,203.36,203.32,1.44005679]
[1756716789549,122.21565831,203.36,203.31,1.47503098]
[1756716789950,122.21565831,203.36,203.31,9.27503098]
[1756716790351,0.03565831,203.36,203.31,9.27503098]
[1756716790553,0.03565831,203.36,203.32,7.8]
[1756716791752,0.03565831,203.36,203.33,7.8]
[1756716792154,0.03565831,203.36,203.32,1.44005679]
[1756716792351,0.03565831,203.36,203.31,0.03497419]
[1756716792554,0.03565831,203.36,203.31,7.83497419]
[1756716792750,7.51565831,203.36,203.31,0.03497419]
[1756716792952,7.48,203.35,203.31,0.03497419]
[1756716793845,1.4757151,203.36,203.31,0.03497419]
[1756716794044,7.48,203.32,203.31,0.03497419]
[1756716794249,129.6,203.32,203.31,0.03497419]
[1756716796354,130.1,203.32,203.31,0.03497419]
[1756716796655,130.1,203.32,203.22,1.44005679]
[1756716796854,7.48,203.29,203.17,7.8]
[1756716797055,122.12,203.28,203.17,7.8]
[1756716797254,122.12,203.28,203.18,1.44005679]
[1756716797448,7.48,203.27,203.18,1.44005679]
[1756716797852,0.03537127,203.25,203.18,1.44005679]
[1756716798049,122.12,203.24,203.18,1.44005679]
[1756716800652,0.03537127,203.25,203.18,1.44005679]
[1756716800856,8.76,203.24,203.19,7.8]
[1756716801063,0.03537127,203.25,203.18,1.44005679]
[1756716801256,5.77537127,203.25,203.21,1.44005679]
[1756716801456,0.03537127,203.25,203.21,1.44005679]
[1756716802561,0.03537127,203.25,203.13,108.28420698]
[1756716802562,0.03537127,203.25,203.24,1.44005679]
[1756716802763,7.48,203.34,203.24,9.24005679]
[1756716803061,1.44005679,203.37,203.27,1.44005679]
[1756716803062,30.32,203.33,203.27,1.44005679]
[1756716803251,7.48,203.37,203.27,1.44005679]
[1756716803452,330.54,203.4,203.31,1.44005679]
[1756716803662,330.54,203.4,203.34,1.44005679]
[1756716803958,122.14,203.39,203.34,1.44005679]
[1756716804360,330.54,203.4,203.34,1.44005679]
[1756716804560,122.14,203.38,203.34,1.44005679]
[1756716805159,330.54,203.4,203.34,1.44005679]
[1756716805364,122.14,203.39,203.34,1.44005679]
[1756716805567,330.54,203.4,203.34,9.35005679]
[1756716805855,452.68,203.4,203.34,9.35005679]
[1756716806065,452.68,203.4,203.34,1.44005679]
[1756716806451,122.14,203.39,203.35,7.91]
[1756716807164,122.14,203.39,203.34,9.35005679]
[1756716808658,122.14,203.39,203.35,1.44005679]
[1756716810163,122.12,203.39,203.35,1.44005679]
[1756716810663,122.12,203.39,203.38,1.44005679]
[1756716813065,122.12,203.39,203.35,1.44005679]
[1756716813264,8.07,203.38,203.32,1.44005679]
[1756716815862,8.07,203.38,203.27,7.91]
[1756716816064,8.07,203.38,203.31,1.44005679]
[1756716817256,8.07,203.34,203.25,1.44005679]
[1756716817558,122.08,203.33,203.25,1.44005679]
[1756716817961,122.08,203.33,203.22,2.3432599]
[1756716818661,122.08,203.34,203.25,2.3432599]
[1756716818962,122.08,203.34,203.28,2.3432599]
[1756716826968,122.08,203.34,203.27,2.3432599]
[1756716828772,8.07,203.33,203.24,2.3432599]
[1756716829567,122.08,203.36,203.27,2.3432599]
[1756716829771,130.15,203.36,203.28,2.3432599]
[1756716830267,330.58,203.41,203.28,2.3432599]
[1756716830566,122.08,203.39,203.31,2.3432599]
[1756716832877,8.07,203.38,203.31,2.3432599]
[1756716837987,8.07,203.38,203.31,1.43692424]
[1756716840889,8.07,203.38,203.28,1.43692424]
[1756716842987,8.07,203.38,203.29,1.43692424]
[1756716843694,405.46432684,203.49,203.35,1.43692424]
[1756716843695,122.04,203.4,203.35,1.43692424]
[1756716843890,42.42,203.41,203.35,1.43692424]
[1756716847098,34.84,203.41,203.32,1.43692424]
[1756716847300,7.58,203.4,203.32,1.43692424]
[1756716848298,7.58,203.4,203.34,0.03677351]
[1756716848501,0.03698429,203.38,203.34,0.03677351]
[1756716849501,0.03698429,203.38,203.35,9.17692424]
[1756716850293,0.03698429,203.38,203.36,7.74]
[1756716850499,0.03698429,203.38,203.35,1.43692424]
[1756716850698,7.58,203.47,203.36,7.74]
[1756716850993,7.58,203.47,203.39,1.43692424]
[1756716852101,7.58,203.47,203.41,0.03157602]
[1756716852401,7.58,203.44,203.41,0.03157602]
[1756716852798,1.43692424,203.45,203.41,0.03157602]
[1756716852993,7.58,203.44,203.41,0.03157602]
[1756716853298,1.43692424,203.45,203.41,0.03157602]
[1756716853801,7.58,203.44,203.41,0.03157602]
[1756716854001,1.43692424,203.45,203.41,0.03157602]
[1756716854202,7.58,203.44,203.41,0.03157602]
[1756716854405,1.43692424,203.45,203.41,0.03157602]
[1756716854904,7.58,203.41,203.29,1.43692424]
[1756716855099,9.01692424,203.39,203.29,1.43692424]
[1756716855304,46.43692424,203.39,203.29,1.43692424]
[1756716855898,46.43692424,203.39,203.26,5.55839273]
[1756716857203,46.43692424,203.39,203.26,1.43692424]
[1756716857399,1.43692424,203.36,203.25,4.12146849]
[1756716857604,7.58,203.35,203.23,4.12146849]
[1756716857808,7.58,203.32,203.22,5.55839273]
[1756716858004,12.32,203.31,203.21,4.12146849]
[1756716858204,7.58,203.3,203.2,1.43692424]
[1756716858909,9.01692424,203.3,203.2,1.43692424]
[1756716859408,9.01692424,203.3,203.17,1.43692424]
[1756716860206,9.01692424,203.3,203.2,1.43692424]
[1756716860207,7.58,203.3,203.2,1.43692424]
[1756716860506,7.58,203.3,203.19,1.43692424]
[1756716861906,7.58,203.3,203.22,1.43692424]
[1756716862705,80.76,203.29,203.22,1.43692424]
[1756716862905,80.76,203.29,203.19,1.43692424]
[1756716863302,7.58,203.28,203.19,1.43692424]
[1756716864104,7.58,203.28,203.2,4.38795085]
[1756716864304,7.58,203.28,203.21,4.38795085]
[1756716864500,7.58,203.28,203.22,4.38795085]
[1756716864705,7.58,203.28,203.17,2.34460935]
[1756716864706,88.32,203.29,203.23,4.38795085]
[1756716864907,7.56,203.28,203.24,4.38795085]
[1756716865106,7.56,203.28,203.25,4.38795085]
[1756716865303,80.76,203.29,203.26,4.38795085]
[1756716865506,7.56,203.28,203.27,4.38795085]
[1756716867712,129.58,203.28,203.27,4.38795085]
[1756716868102,129.58,203.28,203.27,4.38158685]
[1756716868604,2.34460935,203.33,203.27,4.38158685]
[1756716868805,7.56,203.31,203.28,4.38158685]